bitfinex/quotes_SOLUSD_20251031
["timestamp","ask_amount","ask_price","bid_price","bid_amount"]
[1761909707203,7.07529989,186.85,186.83,0.65]
[1761909707493,3.97491381,186.84,186.82,0.2]
[1761909707695,3.10038608,186.84,186.82,0.2]
[1761909707872,3.79038608,186.83,186.82,0.2]
[1761909708192,7.76669545,186.83,186.82,0.2]
[1761909708396,7.07669545,186.83,186.82,0.2]
[1761909709891,7.76669545,186.83,186.82,0.2]
[1761909711597,13.1191549,186.83,186.82,0.2]
[1761909713081,12.4291549,186.83,186.82,0.2]
[1761909713899,13.1191549,186.83,186.82,0.2]
[1761909714985,12.4291549,186.83,186.82,0.2]
[1761909716688,9.32876882,186.83,186.82,0.2]
[1761909716888,12.4291549,186.83,186.82,0.2]
[1761909718697,7.07669545,186.83,186.82,0.2]
[1761909719003,7.07669545,186.83,186.82,0.86]
[1761909719174,7.07669545,186.83,186.82,0.2]
[1761909720004,12.4291549,186.83,186.82,0.2]
[1761909720207,9.32876882,186.83,186.82,0.2]
[1761909720382,12.4291549,186.83,186.82,0.2]
[1761909721187,9.32876882,186.83,186.82,0.2]
[1761909721500,12.4291549,186.83,186.82,0.2]
[1761909724002,12.46519679,186.83,186.82,0.2]
[1761909724805,4.01235126,186.83,186.82,0.86]
[1761909724999,4.01235126,186.83,186.82,71.61313202]
[1761909726998,3.6016956,186.89,186.82,71.61313202]
[1761909727195,4.01184063,186.88,186.84,3.10038608]
[1761909727405,4.01184063,186.87,186.83,3.76038608]
[1761909727604,4.01184063,186.86,186.83,3.76038608]
[1761909727784,4.01184063,186.85,186.84,0.66]
[1761909730610,4.01184063,186.85,186.84,6.01217298]
[1761909730814,4.01184063,186.85,186.84,68.31217297]
[1761909730999,4.01184063,186.85,186.84,62.95999999]
[1761909731196,4.01184063,186.85,186.84,71.41255905]
[1761909731398,3.6016956,186.91,186.84,84.7929915]
[1761909731600,3.10038608,186.91,186.85,0.66]
[1761909731813,3.10038608,186.89,186.85,0.66]
[1761909732012,3.10038608,186.88,186.85,0.66]
[1761909732207,3.10038608,186.9,186.85,0.66]
[1761909732409,3.10038608,186.91,186.85,3.76038608]
[1761909732908,3.10038608,186.91,186.86,0.66]
[1761909733112,4.3116956,186.92,186.87,3.10038608]
[1761909733113,3.6016956,186.92,186.87,3.10038608]
[1761909733298,6.70208168,186.95,186.9,5.35045478]
[1761909733501,3.10038608,186.96,186.9,8.45084086]
[1761909733717,3.10038608,186.96,186.91,0.66]
[1761909734011,3.10038608,186.94,186.91,0.66]
[1761909734330,0.71,186.96,186.91,0.66]
[1761909734498,3.10038608,186.95,186.91,0.66]
[1761909735136,3.10038608,186.96,186.91,3.76038608]
[1761909735294,3.10038608,186.97,186.92,8.45026838]
[1761909735493,3.10038608,186.97,186.92,9.11026838]
[1761909735710,3.6016956,186.98,186.93,0.66]
[1761909735913,27.29408168,186.99,186.93,3.76038608]
[1761909736112,23.69238608,186.99,186.93,3.76038608]
[1761909736313,3.10038608,186.99,186.94,0.66]
[1761909736733,23.69238608,186.99,186.94,3.76038608]
[1761909736938,3.10038608,187.0,186.94,3.76038608]
[1761909737135,3.10038608,187.0,186.95,0.66]
[1761909737313,3.10038608,187.0,186.96,5.34873769]
[1761909737713,3.10038608,187.0,186.97,0.66]
[1761909738231,0.71,187.0,186.97,0.66]
[1761909738439,3.10038608,186.99,186.97,0.66]
[1761909739041,25.93904075,187.02,186.97,0.66]
[1761909739225,3.10038608,187.01,186.97,0.66]
[1761909739730,3.10038608,187.0,186.97,0.66]
[1761909741340,1.98087111,187.0,186.97,0.66]
[1761909741931,26.64904075,187.02,186.97,0.66]
[1761909741932,1.98087111,187.01,186.97,0.66]
[1761909743240,1.98087111,187.02,186.97,6.00837649]
[1761909743443,1.98087111,187.03,186.98,1.98087111]
[1761909743620,6.0564513,187.04,186.98,2.67087111]
[1761909743821,1.98087111,187.03,186.99,0.69]
[1761909744730,1.98087111,187.02,186.99,0.69]
[1761909745652,1.98087111,187.0,186.93,62.29999999]
[1761909745964,1.98087111,187.0,186.92,0.69]
[1761909745965,1.98087111,186.95,186.92,0.69]
[1761909746266,4.6837077,186.99,186.86,13.37840603]
[1761909746267,1.98087111,186.94,186.89,5.35073061]
[1761909746555,1.98087111,186.93,186.88,1.98087111]
[1761909746734,1.98087111,186.93,186.89,0.69]
[1761909746928,1.98087111,186.91,186.86,64.2808711]
[1761909747126,1.98087111,186.9,186.87,0.69]
[1761909747338,1.98087111,186.91,186.87,0.69]
[1761909748253,1.98087111,186.91,186.87,6.04122469]
[1761909748634,1.98087111,186.92,186.88,0.69]
[1761909749438,26.61127057,186.95,186.88,2.67087111]
[1761909749639,1.98087111,186.94,186.89,1.98087111]
[1761909749942,1.98087111,186.94,186.89,2.67087111]
[1761909750145,1.98087111,186.94,186.9,0.69]
[1761909750342,1.98087111,186.94,186.9,6.04042361]
[1761909750750,1.98087111,186.95,186.91,0.69]
[1761909750945,1.98087111,186.96,186.91,0.69]
[1761909751455,1.98087111,186.97,186.91,64.9708711]
[1761909751635,0.67,187.0,186.94,1.98087111]
[1761909751834,6.62550566,187.0,186.95,1.98087111]
[1761909752049,2.65087111,187.0,186.95,1.98087111]
[1761909752237,2.65087111,187.0,186.96,0.69]
[1761909752440,7.99847228,187.0,186.96,0.69]
[1761909752639,1.98087111,186.97,186.92,6.0398823]
[1761909752939,1.98087111,186.96,186.92,6.0398823]
[1761909753134,1.98087111,186.95,186.92,6.0398823]
[1761909753747,1.98087111,186.95,186.93,0.69]
[1761909753952,1.98087111,186.96,186.93,0.69]
[1761909754150,2.65087111,186.97,186.93,6.03952258]
[1761909754860,1.98087111,186.96,186.93,6.03952258]
[1761909755157,1.98087111,186.96,186.93,0.69]
[1761909755362,2.65087111,186.96,186.93,0.69]
[1761909757063,2.65087111,186.96,186.93,62.98999999]
[1761909758749,1.98087111,186.96,186.93,68.33942435]
[1761909758956,1.98087111,186.98,186.94,0.69]
[1761909759847,2.65087111,186.98,186.94,0.69]
[1761909760164,5.3481354,186.99,186.94,0.69]
[1761909760371,2.65087111,186.98,186.94,0.69]
[1761909760743,2.65087111,186.97,186.93,67.64942435]
[1761909761370,2.65087111,186.97,186.94,0.69]
[1761909761765,1.98087111,186.97,186.94,0.69]
[1761909763067,1.98087111,186.97,186.94,62.98999999]
[1761909765874,1.98087111,186.98,186.95,0.69]
[1761909766374,7.32900651,186.99,186.95,0.69]
[1761909766561,3.98344005,186.98,186.95,0.69]
[1761909767185,3.98344005,186.98,186.95,6.03902369]
[1761909767561,0.67,187.03,186.96,0.69]
[1761909767759,1.98087111,187.0,186.96,62.98999999]
[1761909768059,1.98087111,186.97,186.96,62.29999999]
[1761909768268,1.98087111,186.97,186.93,5.34941778]
[1761909768269,5.34779934,187.0,186.93,5.3495961]
[1761909768475,5.96792898,186.99,186.94,2.67087111]
[1761909768659,1.98087111,186.97,186.94,0.69]
[1761909768872,1.98087111,186.97,186.94,62.7]
[1761909769076,0.67,186.96,186.94,62.7]
[1761909769261,2.65087111,186.96,186.94,62.7]
[1761909770058,1.98087111,186.96,186.94,62.7]
[1761909770377,0.67,186.98,186.94,63.39]
[1761909770553,6.64240504,186.97,186.94,62.7]
[1761909770752,3.99153393,186.96,186.94,62.7]
[1761909771057,2.65087111,186.97,186.94,62.7]
[1761909771258,3.99316509,186.96,186.94,62.7]
[1761909771564,0.67,186.97,186.94,62.7]
[1761909771780,3.99309717,186.96,186.93,6.03948531]
[1761909772159,2.65087111,186.97,186.93,6.03948531]
[1761909772360,3.99427576,186.96,186.93,6.03948531]
[1761909772580,2.65087111,186.97,186.93,6.03948531]
[1761909772781,3.99427533,186.96,186.93,6.03948531]
[1761909773084,2.65087111,186.97,186.93,6.03948531]
[1761909773313,3.99560333,186.96,186.93,6.03948531]
[1761909773607,2.65087111,186.97,186.93,6.03948531]
[1761909773896,3.99560333,186.96,186.93,6.03948531]
[1761909774099,2.65087111,186.97,186.93,6.03948531]
[1761909774284,3.99753757,186.96,186.93,6.03948531]
[1761909774484,2.65087111,186.97,186.93,6.03948531]
[1761909774680,3.997538,186.96,186.93,6.03948531]
[1761909774906,0.67,186.97,186.94,0.69]
[1761909775206,3.99753714,186.96,186.94,0.69]
[1761909775406,0.67,186.97,186.94,0.69]
[1761909775577,3.99952986,186.96,186.94,0.69]
[1761909775783,0.67,186.97,186.94,0.69]
[1761909775985,3.99952986,186.96,186.94,0.69]
[1761909776205,4.00188583,186.95,186.94,0.69]
[1761909776621,4.00188583,186.95,186.93,5.34948531]
[1761909776799,0.67,186.97,186.93,6.03948531]
[1761909776984,4.00188668,186.96,186.93,6.03948531]
[1761909777184,4.00188668,186.95,186.93,6.03948531]
[1761909777406,0.67,186.97,186.93,6.03948531]
[1761909777717,4.00385657,186.96,186.93,68.04948531]
[1761909777890,4.00385657,186.95,186.93,68.04948531]
[1761909778208,4.00385657,186.94,186.93,68.04948531]
[1761909778705,4.00385657,186.94,186.93,68.73948531]
[1761909779108,4.00385657,186.94,186.93,63.39]
[1761909779322,4.00385657,186.94,186.93,62.7]
[1761909780604,4.69385657,186.94,186.93,62.7]
[1761909780811,6.67472768,186.94,186.93,62.7]
[1761909781793,12.02403761,186.94,186.93,62.7]
[1761909781989,12.02403761,186.94,186.88,68.05100886]
[1761909782189,1.98087111,186.92,186.88,68.73100886]
[1761909782512,4.00385657,186.91,186.88,68.73100886]
[1761909782806,4.00385657,186.9,186.89,0.68]
[1761909782990,4.00385657,186.9,186.89,63.38]
[1761909785201,4.00385657,186.9,186.89,68.73074107]
[1761909785913,4.00552079,186.9,186.89,68.73074107]
[1761909787299,4.00552079,186.9,186.89,63.38]
[1761909789627,4.00552079,186.9,186.89,68.73074107]
[1761909794223,4.00552079,186.9,186.89,70.71161218]
[1761909795822,4.00660467,186.9,186.89,70.71161218]
[1761909796012,4.00660467,186.9,186.89,68.73074107]
[1761909796413,4.00660467,186.9,186.89,70.71161218]
[1761909796807,2.67087111,186.94,186.89,70.71161218]
[1761909797013,2.67087111,186.94,186.9,6.03032437]
[1761909797014,4.00608658,186.93,186.9,6.03032437]
[1761909797319,4.00608658,186.92,186.9,6.03032437]
[1761909797511,4.00608658,186.91,186.9,5.35032437]
[1761909798924,4.00608658,186.91,186.89,62.7]
[1761909799130,4.00608658,186.9,186.89,62.7]
[1761909799914,6.69695769,186.9,186.89,62.7]
[1761909801423,4.71608658,186.9,186.89,62.7]
[1761909801807,4.00608658,186.9,186.89,62.7]
[1761909802936,4.00608658,186.9,186.89,71.82919276]
[1761909803736,3.09845169,186.95,186.89,71.82919276]
[1761909803932,4.00449895,186.94,186.9,0.68]
[1761909804138,23.69045169,186.97,186.9,0.68]
[1761909804139,4.00381973,186.93,186.91,3.09845169]
[1761909804335,3.09845169,186.95,186.9,66.47845169]
[1761909804535,4.71436745,186.94,186.9,62.7]
[1761909804749,3.09845169,186.92,186.9,62.7]
[1761909805032,4.71436745,186.91,186.9,62.7]
[1761909805250,4.00436745,186.91,186.9,62.7]
[1761909806349,4.71436745,186.91,186.9,62.7]
[1761909806554,4.71436745,186.91,186.88,68.05097751]
[1761909806750,4.00436745,186.9,186.88,68.05097751]
[1761909807040,3.09845169,186.91,186.88,62.7]
[1761909807234,4.71522371,186.9,186.88,62.7]
[1761909807537,4.00522371,186.89,186.88,62.7]
[1761909812755,4.00522371,186.89,186.88,68.72102739]
[1761909813458,4.00522371,186.89,186.88,71.81947908]
[1761909813625,3.78845169,186.95,186.88,71.81947908]
[1761909813827,4.00535531,186.94,186.9,3.09845169]
[1761909814028,4.00535531,186.93,186.91,0.67]
[1761909814224,4.00535531,186.92,186.91,0.67]
[1761909816152,4.00535531,186.92,186.91,0.67]
[1761909818053,4.00535531,186.92,186.91,6.02016853]
[1761909818652,4.00535531,186.92,186.91,68.72016853]
[1761909820756,4.00535531,186.92,186.91,68.05016853]
[1761909821061,7.793807,186.92,186.91,62.7]
[1761909822343,7.80002443,186.92,186.91,62.7]
[1761909824646,7.80002443,186.92,186.89,5.35070274]
[1761909824849,4.01157274,186.91,186.89,6.02070274]
[1761909825150,4.01157274,186.9,186.89,68.05070274]
[1761909830151,4.01335805,186.9,186.89,68.05070274]
[1761909833168,13.15226452,186.9,186.89,62.7]
[1761909833387,8.3150944,186.9,186.89,62.7]
[1761909833566,7.80180974,186.9,186.89,62.7]
[1761909833775,30.13878175,186.9,186.89,62.7]
[1761909834092,30.13878175,186.9,186.83,68.72230565]
[1761909834300,3.09845169,186.85,186.83,63.37]
[1761909834463,4.01335805,186.84,186.83,63.37]
[1761909834973,4.01335805,186.84,186.83,68.72243342]
[1761909835365,3.09845169,186.85,186.83,68.72243342]
[1761909835593,3.09845169,186.86,186.83,68.72243342]
[1761909835794,4.01164673,186.85,186.83,68.72243342]
[1761909835986,3.78845169,186.86,186.83,68.72243342]
[1761909836281,4.01164633,186.85,186.83,68.05243342]
[1761909836489,19.18985083,186.86,186.83,68.05243342]
[1761909836694,4.01071905,186.85,186.84,0.67]
[1761909838061,4.01071905,186.85,186.84,6.02217298]
[1761909838395,27.63279103,186.94,186.84,6.02217298]
[1761909838396,16.08881023,186.9,186.84,81.60945236]
[1761909838570,4.00858241,186.89,186.87,3.09845169]
[1761909838762,4.00858241,186.88,186.87,3.09845169]
[1761909838964,19.69442758,186.93,186.87,23.69045169]
[1761909839163,4.00807232,186.92,186.91,3.09845169]
[1761909839386,4.00807232,186.92,186.9,3.09845169]
[1761909839683,4.00807232,186.92,186.88,18.72859588]
[1761909839684,16.08535964,186.95,186.91,3.78845169]
[1761909839893,4.00749627,186.94,186.91,3.78845169]
[1761909840190,16.08535964,186.95,186.91,3.78845169]
[1761909840191,4.00749627,186.93,186.91,3.09845169]
[1761909840486,3.09845169,186.98,186.92,3.78845169]
[1761909840674,4.00702141,186.97,186.94,3.09845169]
[1761909840990,4.00702141,186.96,186.94,0.69]
[1761909841305,4.00702141,186.95,186.94,0.69]
[1761909842190,4.00702141,186.95,186.94,6.03930993]
[1761909842988,4.00702141,186.95,186.94,9.13776162]
[1761909843170,3.60485618,187.01,186.94,22.51103646]
[1761909843497,4.00461435,187.0,186.99,3.09845169]
[1761909843996,4.00461435,187.0,186.99,3.78845169]
[1761909844599,3.80845169,187.06,186.99,3.78845169]
[1761909844815,4.00055549,187.05,187.01,3.09845169]
[1761909844964,4.00055549,187.04,187.02,3.09845169]
[1761909845165,4.00055549,187.03,187.01,5.34730763]
[1761909845394,0.71,187.06,187.02,3.78845169]
[1761909845671,3.99672241,187.05,187.02,3.09845169]
[1761909845880,3.99672241,187.04,187.02,3.09845169]
[1761909846173,5.18043093,187.06,187.03,0.69]
[1761909846376,3.99363335,187.05,187.03,0.69]
[1761909846566,3.99363335,187.04,187.03,0.69]
[1761909846766,3.99363335,187.04,187.02,3.09845169]
[1761909846992,4.47043093,187.06,187.03,3.78845169]
[1761909847180,0.81,187.08,187.04,0.69]
[1761909847489,3.99019537,187.07,187.04,0.69]
[1761909848279,5.99043093,187.08,187.04,6.03644075]
[1761909848483,0.71,187.07,187.04,6.03644075]
[1761909849000,0.71,187.07,187.04,5.34644075]
[1761909849202,5.28043093,187.08,187.04,0.69]
[1761909849407,5.99043093,187.08,187.04,0.69]
[1761909850299,5.99043093,187.08,187.04,6.03633804]
[1761909851109,0.71,187.07,187.03,8.44517659]
[1761909851285,0.71,187.07,187.03,9.13517659]
[1761909851611,8.37888262,187.08,187.04,0.69]
[1761909851612,3.19845169,187.08,187.04,0.69]
[1761909851905,0.81,187.08,187.04,0.69]
[1761909852107,0.81,187.08,187.04,3.78845169]
[1761909853902,9.25386256,187.08,187.02,5.34701062]
[1761909854203,3.09845169,187.06,187.01,71.14572568]
[1761909854409,6.05574155,187.07,187.01,71.83572568]
[1761909854708,3.80845169,187.06,187.01,71.83572568]
[1761909855096,0.71,187.05,187.01,71.83572568]
[1761909855597,0.71,187.05,186.98,13.36991882]
[1761909855598,3.09845169,187.02,186.98,62.7]
[1761909855800,3.09845169,187.0,186.96,63.39]
[1761909856001,3.09845169,186.99,186.96,63.39]
[1761909856199,3.80845169,187.0,186.96,63.39]
[1761909856407,3.80845169,187.0,186.96,68.73872449]
[1761909856589,3.80845169,187.0,186.97,0.69]
[1761909856785,3.09845169,187.0,186.97,0.69]
[1761909856994,3.09845169,187.01,186.97,0.69]
[1761909857189,6.05574155,187.04,186.98,3.09845169]
[1761909857399,3.09845169,187.03,186.99,0.7]
[1761909857681,3.76845169,187.03,186.99,0.7]
[1761909859107,0.67,187.02,186.99,6.04778532]
[1761909859305,3.76845169,187.02,186.99,6.04778532]
[1761909859506,3.76845169,187.02,186.99,0.7]
[1761909859813,3.76845169,187.01,186.98,62.7]
[1761909860189,3.76845169,187.01,186.98,63.4]
[1761909860505,3.09845169,187.01,186.98,68.74809653]
[1761909860705,3.09845169,187.02,186.98,68.74809653]
[1761909861412,2.65063069,187.02,186.98,68.74809653]
[1761909861912,2.65063069,187.01,186.98,62.7]
[1761909862286,2.65063069,187.01,186.98,63.4]
[1761909864020,16.07932466,187.02,186.98,68.04813615]
[1761909864312,20.592,187.06,187.01,1.98063069]
[1761909864526,21.262,187.06,187.01,1.98063069]
[1761909864709,0.67,187.05,187.01,2.68063069]
[1761909864887,0.67,187.05,187.02,0.7]
[1761909865089,0.1,187.08,187.03,5.34673581]
[1761909865602,0.1,187.08,187.04,0.7]
[1761909866404,0.1,187.08,187.05,5.34616412]
[1761909866815,0.1,187.08,187.05,6.04616412]
[1761909869124,0.1,187.08,187.05,6.06616412]
[1761909869822,0.81,187.08,187.05,6.06616412]
[1761909870521,0.81,187.08,187.05,68.76616412]
[1761909870826,0.1,187.08,187.05,68.76616412]
[1761909871205,0.1,187.08,187.05,68.04616412]
[1761909871408,0.1,187.08,187.06,0.72]
[1761909873630,0.1,187.08,187.06,6.06559762]
[1761909873814,0.1,187.08,187.06,0.72]
[1761909874128,0.1,187.08,187.07,0.72]
[1761909875131,0.1,187.08,187.07,6.06559255]
[1761909877327,0.1,187.08,187.07,5.34559255]
[1761909877528,0.1,187.08,187.07,6.06559255]
[1761909878222,0.1,187.08,187.06,68.04587696]
[1761909878414,0.81,187.08,187.06,62.7]
[1761909878733,0.1,187.08,187.06,63.42]
[1761909879118,0.1,187.08,187.06,68.04586628]
[1761909879435,0.1,187.08,187.06,68.76586628]
[1761909879736,0.81,187.08,187.06,62.7]
[1761909880435,0.1,187.08,187.06,68.04587193]
[1761909880635,0.1,187.08,187.06,68.76587193]
[1761909881318,0.1,187.08,187.06,68.04587193]
[1761909882239,4.08051942,187.08,187.06,68.76587193]
[1761909883230,0.1,187.08,187.06,68.76587193]
[1761909884133,3.991214,187.07,187.06,68.76587193]
[1761909884726,3.99121443,187.07,187.06,68.76587193]
[1761909888321,0.1,187.08,187.06,68.76587193]
[1761909888322,0.1,187.08,187.06,78.55469962]
[1761909888648,0.1,187.08,187.07,0.72]
[1761909890537,0.1,187.08,187.07,6.06559255]
[1761909892452,0.1,187.08,187.07,0.72]
[1761909892658,0.1,187.08,187.02,68.76695406]
[1761909892659,4.80561727,187.08,187.02,68.76695406]
[1761909892856,5.97624796,187.07,187.03,0.72]
[1761909893043,3.99589477,187.06,187.03,0.72]
[1761909893236,3.99620631,187.05,187.03,0.72]
[1761909893443,1.98063069,187.06,187.03,0.72]
[1761909893753,3.99634219,187.05,187.03,0.72]
[1761909893958,0.71,187.06,187.03,0.72]
[1761909894145,3.99634283,187.05,187.03,0.72]
[1761909894456,1.98063069,187.06,187.03,0.72]
[1761909894759,3.99633833,187.05,187.03,6.06663132]
[1761909895052,1.98063069,187.06,187.03,6.06663132]
[1761909895252,3.99633384,187.05,187.03,6.06663132]
[1761909895450,1.98063069,187.06,187.03,6.06663132]
[1761909895625,3.99633341,187.05,187.03,6.06663132]
[1761909895825,2.69063069,187.06,187.03,6.06663132]
[1761909896029,3.99633384,187.05,187.01,64.68063069]
[1761909896237,2.69063069,187.06,187.02,0.72]
[1761909896447,3.99633021,187.05,187.02,0.72]
[1761909896755,2.69063069,187.06,187.02,0.72]
[1761909896957,1.98063069,187.04,187.01,68.04727974]
[1761909897134,1.98063069,187.04,187.01,5.34727974]
[1761909897332,2.69063069,187.04,187.01,5.34727974]
[1761909898127,1.98063069,187.05,187.01,6.06727974]
[1761909898436,2.69063069,187.05,187.02,0.72]
[1761909899531,1.98063069,187.05,187.02,0.72]
[1761909900271,1.98063069,187.06,187.02,6.06701255]
[1761909900455,1.98063069,187.06,187.03,0.7]
[1761909900765,3.9961044,187.05,187.03,63.4]
[1761909901058,2.66063069,187.06,187.03,62.7]
[1761909901255,3.99742642,187.05,187.03,62.7]
[1761909901556,3.99742642,187.04,187.03,62.7]
[1761909902057,3.99746376,187.04,187.03,62.7]
[1761909904853,3.99967702,187.04,187.03,62.7]
[1761909905054,2.66063069,187.06,187.03,62.7]
[1761909905263,4.00075786,187.05,187.04,0.7]
[1761909905436,4.00075786,187.05,187.04,6.04644995]
[1761909905955,0.1,187.08,187.04,68.74644995]
[1761909906157,4.00023529,187.07,187.05,0.7]
[1761909906347,0.1,187.08,187.05,0.7]
[1761909906659,0.1,187.08,187.04,68.04644995]
[1761909906660,5.98216974,187.07,187.04,62.7]
[1761909906862,4.00153905,187.06,187.04,62.7]
[1761909907059,4.00153905,187.05,187.04,0.7]
[1761909907656,4.00153905,187.05,187.04,6.04644995]
[1761909912382,4.00608288,187.05,187.04,6.04644995]
[1761909912564,4.00608288,187.05,187.04,68.74644995]
[1761909916260,4.00608288,187.05,187.01,62.7]
[1761909916595,1.98063069,187.03,187.01,62.7]
[1761909916759,4.68608288,187.02,187.01,62.7]
[1761909917368,6.66671357,187.02,187.01,62.7]
[1761909917879,4.00608288,187.02,187.01,62.7]
[1761909920577,0.82,187.08,187.01,80.50676601]
[1761909920779,4.00269554,187.07,187.02,0.69]
[1761909921091,4.00269554,187.06,187.02,63.92470217]
[1761909921262,0.1,187.08,187.02,63.92470217]
[1761909921579,4.00228367,187.07,187.03,0.69]
[1761909921777,0.1,187.08,187.03,0.69]
[1761909921778,4.00228367,187.06,187.03,0.69]
[1761909921979,3.19168699,187.08,187.03,0.69]
[1761909921980,4.00240105,187.05,187.03,0.69]
[1761909922155,0.72,187.07,187.03,0.69]
[1761909922361,4.00281423,187.06,187.03,0.69]
[1761909922588,3.19168699,187.08,187.04,5.34644995]
[1761909922786,4.00263726,187.07,187.04,5.34644995]
[1761909922984,4.00263726,187.06,187.04,6.03644995]
[1761909923190,3.91168699,187.08,187.04,6.03644995]
[1761909923488,4.00290381,187.07,187.04,6.03644995]
[1761909923662,4.00290381,187.06,187.04,6.03644995]
[1761909923966,3.81168699,187.07,187.03,5.34673581]
[1761909924171,3.81168699,187.07,187.03,68.04673581]
[1761909924172,4.00305254,187.06,187.03,68.04673581]
[1761909924388,4.00305254,187.05,187.03,68.04673581]
[1761909924569,3.91168699,187.08,187.03,68.04673581]
[1761909924884,4.00305842,187.07,187.04,0.69]
[1761909925089,4.00305842,187.06,187.04,0.69]
[1761909925272,4.00305842,187.05,187.04,0.69]
[1761909925870,0.1,187.08,187.05,5.34616412]
[1761909926071,4.00305364,187.07,187.05,68.73616412]
[1761909926290,0.1,187.08,187.05,68.73616412]
[1761909926485,4.00293896,187.07,187.05,68.73616412]
[1761909926781,4.00293896,187.06,187.05,68.73616412]
[1761909927297,4.00293896,187.06,187.05,68.04616412]
[1761909927788,4.00296858,187.06,187.05,62.7]
[1761909928381,4.00296858,187.06,187.05,68.04616412]
[1761909929285,4.00296858,187.06,187.05,62.7]
[1761909929674,4.00296858,187.06,187.05,68.04616412]
[1761909929986,4.00296858,187.06,187.05,62.7]
[1761909930889,4.00296858,187.06,187.05,68.76616412]
[1761909931968,4.00296858,187.06,187.05,62.7]
[1761909932465,4.00296858,187.06,187.05,68.04616412]
[1761909933403,4.00296858,187.06,187.05,62.7]
[1761909934585,4.0037323,187.06,187.05,62.7]
[1761909936717,4.0037323,187.06,187.05,63.42]
[1761909936896,4.0037323,187.06,187.05,62.7]
[1761909937100,4.7137323,187.06,187.05,62.7]
[1761909937406,7.80541929,187.06,187.05,62.7]
[1761909937828,3.09168699,187.04,187.0,14.95678112]
[1761909937990,7.09541929,187.03,187.0,14.95678112]
[1761909938195,4.0037323,187.02,187.0,9.60943642]
[1761909938509,4.0037323,187.01,187.0,9.60943642]
[1761909939201,4.7137323,187.01,187.0,9.60943642]
[1761909939707,4.0037323,187.01,187.0,9.60943642]
[1761909940511,4.7137323,187.01,187.0,9.60943642]
[1761909941613,4.0037323,187.01,187.0,9.60943642]
[1761909942704,4.7137323,187.01,187.0,9.60943642]
[1761909943100,4.0037323,187.01,187.0,9.60943642]
[1761909944590,4.0037323,187.01,187.0,10.32943642]
[1761909944792,4.0037323,187.01,187.0,73.02943642]
[1761909945016,4.0037323,187.01,187.0,72.30943642]
[1761909945396,7.80541929,187.01,187.0,72.30943642]
[1761909950494,13.15272692,187.01,187.0,72.30943642]
[1761909950817,13.15272692,187.01,187.0,9.60943642]
[1761909957423,7.80541929,187.01,187.0,9.60943642]
[1761909958037,0.71,187.06,187.0,18.76871699]
[1761909958212,3.99511473,187.05,187.01,3.81168699]
[1761909958414,3.99511473,187.04,187.01,9.15877791]
[1761909958621,0.71,187.05,187.02,0.72]
[1761909958925,3.99535751,187.04,187.02,0.72]
[1761909959238,3.09168699,187.05,187.02,0.72]
[1761909959417,3.99558038,187.04,187.02,0.72]
[1761909959621,3.09168699,187.05,187.02,0.72]
[1761909959816,3.9955796,187.04,187.02,0.72]
[1761909960019,3.09168699,187.06,187.02,0.72]
[1761909960240,3.99558003,187.05,187.03,3.09168699]
[1761909960529,3.91168699,187.08,187.04,0.66]
[1761909960702,3.99536503,187.07,187.04,0.66]
[1761909960902,3.99536503,187.06,187.04,0.66]
[1761909961110,3.99536503,187.05,187.04,0.66]
[1761909962034,3.99536503,187.05,187.04,6.00644995]
[1761909962412,3.99536503,187.05,187.04,71.79813694]
[1761909962824,0.1,187.08,187.04,71.79813694]
[1761909963126,3.99502656,187.07,187.05,3.75168699]
[1761909963319,0.1,187.08,187.06,0.66]
[1761909963626,3.9949389,187.07,187.06,63.36]
[1761909967027,0.1,187.08,187.06,63.36]
[1761909967810,0.1,187.08,187.06,71.13736677]
[1761909968029,0.1,187.08,187.07,0.66]
[1761909968218,0.1,187.08,187.07,63.36]
[1761909968429,0.1,187.08,187.07,66.45168699]
[1761909969716,0.1,187.08,187.07,71.79727954]
[1761909971532,0.1,187.08,187.07,71.13727954]
[1761909971724,0.1,187.08,187.07,71.79727954]
[1761909972511,0.1,187.08,187.07,68.70559255]